[Event "Titled Tuesday Blitz November 14 Late 2023"]
[White "Karacsonyi, Gellert"]
[Black "Reprintsev, Alexander"]
[WhiteFideId "764620"]
[BlackFideId "14100541"]
[WhiteElo "2759"]
[BlackElo "2526"]
[Result "1-0"]
[Round "2"]
[TimeControl "180+1"]
[Date "2023.11.14"]
[WhiteClock "0:00:23"]
[BlackClock "0:00:00"]
[Board "51"]

1. e4 {[%clk 0:02:54]}  d5 {[%clk 0:02:58]} 2. exd5 {[%clk 0:02:54]}  Qxd5 {[%clk 0:02:58]} 3. Nc3 {[%clk 0:02:55]}  Qa5 {[%clk 0:02:57]} 4. d4 {[%clk 0:02:56]}  Nf6 {[%clk 0:02:57]} 5. Nf3 {[%clk 0:02:56]}  Nc6 {[%clk 0:02:57]} 6. h3 {[%clk 0:02:55]}  Ne4 {[%clk 0:02:56]} 7. Qd3 {[%clk 0:02:48]}  Bf5 {[%clk 0:02:53]} 8. Qb5 {[%clk 0:02:36]}  Nxc3 {[%clk 0:02:51]} 9. Qxa5 {[%clk 0:02:35]}  Nxa5 {[%clk 0:02:51]} 10. bxc3 {[%clk 0:02:35]}  Bxc2 {[%clk 0:02:51]} 11. Bf4 {[%clk 0:02:27]}  Rc8 {[%clk 0:02:24]} 12. Be2 {[%clk 0:02:18]}  e6 {[%clk 0:02:23]} 13. O-O {[%clk 0:02:16]}  Bd6 {[%clk 0:02:23]} 14. Bb5+ {[%clk 0:02:15]}  Ke7 {[%clk 0:02:19]} 15. Bg5+ {[%clk 0:02:14]}  f6 {[%clk 0:02:18]} 16. Bd2 {[%clk 0:02:13]}  a6 {[%clk 0:02:08]} 17. Be2 {[%clk 0:02:10]}  b5 {[%clk 0:02:07]} 18. Rfe1 {[%clk 0:02:07]}  Nc4 {[%clk 0:01:39]} 19. Bxc4 {[%clk 0:01:57]}  bxc4 {[%clk 0:01:39]} 20. d5 {[%clk 0:01:58]}  e5 {[%clk 0:01:38]} 21. Nd4 {[%clk 0:01:57]}  Bd3 {[%clk 0:01:38]} 22. f4 {[%clk 0:01:49]}  Kf7 {[%clk 0:01:32]} 23. fxe5 {[%clk 0:01:49]}  fxe5 {[%clk 0:01:23]} 24. Nc6 {[%clk 0:01:50]}  Rhe8 {[%clk 0:01:21]} 25. Bg5 {[%clk 0:01:43]}  h6 {[%clk 0:01:20]} 26. Bh4 {[%clk 0:01:43]}  e4 {[%clk 0:01:18]} 27. Bf2 {[%clk 0:01:42]}  Bf4 {[%clk 0:01:06]} 28. Bd4 {[%clk 0:01:38]}  g5 {[%clk 0:00:47]} 29. Kf2 {[%clk 0:01:29]}  Kg6 {[%clk 0:00:45]} 30. g3 {[%clk 0:01:24]}  Bd6 {[%clk 0:00:45]} 31. Kg2 {[%clk 0:01:24]}  Rf8 {[%clk 0:00:45]} 32. a4 {[%clk 0:01:08]}  Rf5 {[%clk 0:00:41]} 33. g4 {[%clk 0:01:01]}  Rxd5 {[%clk 0:00:40]} 34. Ra2 {[%clk 0:00:52]}  Rf8 {[%clk 0:00:37]} 35. Rf2 {[%clk 0:00:44]}  Rxf2+ {[%clk 0:00:36]} 36. Bxf2 {[%clk 0:00:45]}  Bc5 {[%clk 0:00:17]} 37. Be3 {[%clk 0:00:32]}  Kh7 {[%clk 0:00:15]} 38. Kf2 {[%clk 0:00:21]}  Bxe3+ {[%clk 0:00:14]} 39. Kxe3 {[%clk 0:00:22]}  Rc5 {[%clk 0:00:15]} 40. Nd4 {[%clk 0:00:21]}  Ra5 {[%clk 0:00:15]} 41. Ra1 {[%clk 0:00:22]}  Re5 {[%clk 0:00:12]} 42. Ra2 {[%clk 0:00:22]}  Re7 {[%clk 0:00:11]} 43. Rb2 {[%clk 0:00:22]}  Rf7 {[%clk 0:00:11]} 44. Nf5 {[%clk 0:00:23]}  h5 {[%clk 0:00:07]} 45. Rb8 {[%clk 0:00:23]}  hxg4 {[%clk 0:00:07]} 46. hxg4 {[%clk 0:00:24]}  Rd7 {[%clk 0:00:07]} 47. Ra8 {[%clk 0:00:24]}  Kg6 {[%clk 0:00:05]} 48. Rxa6+ {[%clk 0:00:24]}  Kf7 {[%clk 0:00:05]} 49. a5 {[%clk 0:00:22]}  Rd8 {[%clk 0:00:05]} 50. Rh6 {[%clk 0:00:22]}  Ra8 {[%clk 0:00:00]} 51. a6 {[%clk 0:00:23]} 1-0


[Site "https://www.chess.com"]

[Event "Titled Tuesday Blitz November 14 Late 2023"]
[White "Rizzo, Tobias"]
[Black "Djordjevic, Vuk"]
[WhiteFideId "30942691"]
[BlackFideId "902098"]
[WhiteElo "2524"]
[BlackElo "2741"]
[Result "0-1"]
[Round "2"]
[TimeControl "180+1"]
[Date "2023.11.14"]
[WhiteClock "0:00:00"]
[BlackClock "0:00:11"]
[Board "52"]

1. Nf3 {[%clk 0:03:00]}  Nf6 {[%clk 0:02:58]} 2. b3 {[%clk 0:03:01]}  e6 {[%clk 0:02:58]} 3. Bb2 {[%clk 0:03:00]}  d5 {[%clk 0:02:59]} 4. e3 {[%clk 0:02:59]}  Bd6 {[%clk 0:02:49]} 5. c4 {[%clk 0:02:56]}  O-O {[%clk 0:02:48]} 6. d4 {[%clk 0:02:52]}  b6 {[%clk 0:02:48]} 7. Nc3 {[%clk 0:02:51]}  Bb7 {[%clk 0:02:48]} 8. Bd3 {[%clk 0:02:51]}  Nbd7 {[%clk 0:02:48]} 9. O-O {[%clk 0:02:50]}  c5 {[%clk 0:02:40]} 10. Rc1 {[%clk 0:02:47]}  Rc8 {[%clk 0:02:33]} 11. Qe2 {[%clk 0:02:43]}  cxd4 {[%clk 0:02:24]} 12. exd4 {[%clk 0:02:39]}  Bf4 {[%clk 0:02:21]} 13. Rc2 {[%clk 0:02:33]}  Re8 {[%clk 0:02:20]} 14. g3 {[%clk 0:02:27]}  dxc4 {[%clk 0:02:04]} 15. bxc4 {[%clk 0:02:22]}  Bb8 {[%clk 0:02:04]} 16. Ne4 {[%clk 0:02:20]}  e5 {[%clk 0:01:53]} 17. d5 {[%clk 0:01:43]}  Nxe4 {[%clk 0:01:39]} 18. Bxe4 {[%clk 0:01:10]}  g6 {[%clk 0:01:25]} 19. Nd2 {[%clk 0:01:07]}  f5 {[%clk 0:01:20]} 20. Bg2 {[%clk 0:01:06]}  e4 {[%clk 0:01:21]} 21. Nb3 {[%clk 0:01:00]}  Ne5 {[%clk 0:01:16]} 22. Nd4 {[%clk 0:00:57]}  Ba6 {[%clk 0:01:11]} 23. Rfc1 {[%clk 0:00:52]}  Nd3 {[%clk 0:01:07]} 24. Ne6 {[%clk 0:00:36]}  Nxc1 {[%clk 0:01:01]} 25. Rxc1 {[%clk 0:00:36]}  Qxd5 {[%clk 0:00:59]} 26. Nf4 {[%clk 0:00:19]}  Bxf4 {[%clk 0:00:57]} 27. gxf4 {[%clk 0:00:20]}  Rxc4 {[%clk 0:00:56]} 28. Rd1 {[%clk 0:00:19]}  Rc7 {[%clk 0:00:37]} 29. Qe1 {[%clk 0:00:10]}  Bd3 {[%clk 0:00:29]} 30. Be5 {[%clk 0:00:08]}  Rd7 {[%clk 0:00:24]} 31. Qe3 {[%clk 0:00:06]}  Qxa2 {[%clk 0:00:22]} 32. h4 {[%clk 0:00:04]}  Qf7 {[%clk 0:00:17]} 33. Rc1 {[%clk 0:00:02]}  h5 {[%clk 0:00:10]} 34. Rc6 {[%clk 0:00:02]}  Kh7 {[%clk 0:00:10]} 35. Rf6 {[%clk 0:00:02]}  Qg8 {[%clk 0:00:10]} 36. Qg3 {[%clk 0:00:03]}  Re6 {[%clk 0:00:10]} 37. Bh3 {[%clk 0:00:01]}  Rxf6 {[%clk 0:00:10]} 38. Bxf6 {[%clk 0:00:02]}  Qf8 {[%clk 0:00:10]} 39. Qg5 {[%clk 0:00:03]}  Qh6 {[%clk 0:00:10]} 40. Qg3 {[%clk 0:00:02]}  Rf7 {[%clk 0:00:10]} 41. Bg5 {[%clk 0:00:03]}  Qg7 {[%clk 0:00:11]} 42. Bg2 {[%clk 0:00:02]}  Rd7 {[%clk 0:00:10]} 43. Kh2 {[%clk 0:00:03]}  Be2 {[%clk 0:00:11]} 44. Qe3 {[%clk 0:00:03]}  Bf3 {[%clk 0:00:11]} 45. Bf1 {[%clk 0:00:02]}  Qf7 {[%clk 0:00:10]} 46. Bb5 {[%clk 0:00:02]}  Rd1 {[%clk 0:00:10]} 47. Qc3 {[%clk 0:00:02]}  Rh1+ {[%clk 0:00:10]} 48. Kg3 {[%clk 0:00:03]}  Rg1+ {[%clk 0:00:10]} 49. Kh2 {[%clk 0:00:04]}  Rg2+ {[%clk 0:00:11]} 50. Kh3 {[%clk 0:00:05]}  Rxf2 {[%clk 0:00:11]} 51. Kg3 {[%clk 0:00:05]}  Rg2+ {[%clk 0:00:10]} 52. Kh3 {[%clk 0:00:05]}  Rxg5 {[%clk 0:00:08]} 53. hxg5 {[%clk 0:00:05]}  Qg7 {[%clk 0:00:09]} 54. Qc6 {[%clk 0:00:05]}  Bg4+ {[%clk 0:00:08]} 55. Kh4 {[%clk 0:00:05]}  e3 {[%clk 0:00:09]} 56. Qe6 {[%clk 0:00:02]}  e2 {[%clk 0:00:09]} 57. Bxe2 {[%clk 0:00:03]}  Bxe2 {[%clk 0:00:08]} 58. Qxe2 {[%clk 0:00:04]}  a5 {[%clk 0:00:09]} 59. Qb5 {[%clk 0:00:04]}  Qa7 {[%clk 0:00:09]} 60. Kg3 {[%clk 0:00:02]}  a4 {[%clk 0:00:09]} 61. Qc6 {[%clk 0:00:02]}  a3 {[%clk 0:00:10]} 62. Qc3 {[%clk 0:00:02]}  a2 {[%clk 0:00:10]} 63. Qa1 {[%clk 0:00:03]}  b5 {[%clk 0:00:10]} 64. Kf3 {[%clk 0:00:03]}  b4 {[%clk 0:00:11]} 65. Ke2 {[%clk 0:00:00]}  b3 {[%clk 0:00:11]} 0-1


[Site "https://www.chess.com"]

[Event "Titled Tuesday Blitz November 14 Late 2023"]
[White "TimGrutter03"]
[Black "Rohan, Ahuja"]
[BlackFideId "5090598"]
[WhiteElo "2523"]
[BlackElo "2719"]
[Result "1-0"]
[Round "2"]
[TimeControl "180+1"]
[Date "2023.11.14"]
[WhiteClock "0:00:11"]
[BlackClock "0:00:35"]
[Board "53"]

1. Nf3 {[%clk 0:03:00]}  Nf6 {[%clk 0:02:59]} 2. g3 {[%clk 0:03:01]}  g6 {[%clk 0:03:00]} 3. Bg2 {[%clk 0:03:00]}  Bg7 {[%clk 0:03:00]} 4. O-O {[%clk 0:03:01]}  O-O {[%clk 0:03:01]} 5. d3 {[%clk 0:02:59]}  d5 {[%clk 0:03:01]} 6. Nc3 {[%clk 0:02:52]}  c5 {[%clk 0:02:39]} 7. e4 {[%clk 0:02:51]}  d4 {[%clk 0:02:06]} 8. Nb1 {[%clk 0:02:47]}  Nc6 {[%clk 0:02:05]} 9. a4 {[%clk 0:02:43]}  e5 {[%clk 0:02:01]} 10. Ne1 {[%clk 0:02:34]}  Ne8 {[%clk 0:01:59]} 11. f4 {[%clk 0:02:28]}  Nd6 {[%clk 0:01:58]} 12. Nd2 {[%clk 0:02:25]}  f5 {[%clk 0:01:53]} 13. Nef3 {[%clk 0:02:13]}  exf4 {[%clk 0:01:47]} 14. gxf4 {[%clk 0:02:09]}  fxe4 {[%clk 0:01:47]} 15. Nxe4 {[%clk 0:02:07]}  b6 {[%clk 0:01:20]} 16. Ne5 {[%clk 0:01:52]}  Bb7 {[%clk 0:00:44]} 17. Nxc5 {[%clk 0:01:28]}  bxc5 {[%clk 0:00:44]} 18. Nxc6 {[%clk 0:01:28]}  Qc7 {[%clk 0:00:44]} 19. Ne5 {[%clk 0:01:17]}  Bxg2 {[%clk 0:00:43]} 20. Kxg2 {[%clk 0:01:18]}  Nf5 {[%clk 0:00:44]} 21. Qg4 {[%clk 0:01:04]}  Rae8 {[%clk 0:00:38]} 22. Bd2 {[%clk 0:00:56]}  Qb7+ {[%clk 0:00:37]} 23. Kg1 {[%clk 0:00:51]}  Qxb2 {[%clk 0:00:33]} 24. Rac1 {[%clk 0:00:36]}  Qb7 {[%clk 0:00:28]} 25. Nc4 {[%clk 0:00:27]}  Re6 {[%clk 0:00:25]} 26. Rce1 {[%clk 0:00:25]}  Rfe8 {[%clk 0:00:24]} 27. Qg2 {[%clk 0:00:18]}  Qd7 {[%clk 0:00:21]} 28. Rxe6 {[%clk 0:00:16]}  Rxe6 {[%clk 0:00:22]} 29. Re1 {[%clk 0:00:15]}  Rxe1+ {[%clk 0:00:21]} 30. Bxe1 {[%clk 0:00:15]}  Qe6 {[%clk 0:00:17]} 31. Qa8+ {[%clk 0:00:10]}  Bf8 {[%clk 0:00:16]} 32. Qe4 {[%clk 0:00:08]}  Qf6 {[%clk 0:00:16]} 33. Ne5 {[%clk 0:00:06]}  Qe6 {[%clk 0:00:15]} 34. Ng4 {[%clk 0:00:02]}  Kf7 {[%clk 0:00:14]} 35. Ne5+ {[%clk 0:00:02]}  Kg8 {[%clk 0:00:10]} 36. Ng4 {[%clk 0:00:02]}  Qf7 {[%clk 0:00:10]} 37. Ne5 {[%clk 0:00:02]}  Qg7 {[%clk 0:00:10]} 38. Qd5+ {[%clk 0:00:01]}  Kh8 {[%clk 0:00:11]} 39. Nf7+ {[%clk 0:00:01]}  Kg8 {[%clk 0:00:11]} 40. Nh6+ {[%clk 0:00:02]}  Kh8 {[%clk 0:00:12]} 41. Nf7+ {[%clk 0:00:02]}  Kg8 {[%clk 0:00:13]} 42. Nh6+ {[%clk 0:00:02]}  Kh8 {[%clk 0:00:13]} 43. Nxf5 {[%clk 0:00:03]}  gxf5+ {[%clk 0:00:13]} 44. Bg3 {[%clk 0:00:03]}  Qg6 {[%clk 0:00:13]} 45. Qe5+ {[%clk 0:00:03]}  Kg8 {[%clk 0:00:13]} 46. Qd5+ {[%clk 0:00:03]}  Qf7 {[%clk 0:00:13]} 47. Qe5 {[%clk 0:00:01]}  h5 {[%clk 0:00:13]} 48. Kf2 {[%clk 0:00:01]}  Kh7 {[%clk 0:00:14]} 49. Kf3 {[%clk 0:00:01]}  Kg6 {[%clk 0:00:14]} 50. Qe2 {[%clk 0:00:01]}  Qb7+ {[%clk 0:00:15]} 51. Kf2 {[%clk 0:00:01]}  Qd5 {[%clk 0:00:16]} 52. Qf3 {[%clk 0:00:02]}  Qxf3+ {[%clk 0:00:16]} 53. Kxf3 {[%clk 0:00:03]}  Be7 {[%clk 0:00:16]} 54. Bf2 {[%clk 0:00:03]}  Kf7 {[%clk 0:00:17]} 55. Be1 {[%clk 0:00:03]}  Ke6 {[%clk 0:00:17]} 56. c3 {[%clk 0:00:04]}  Kd5 {[%clk 0:00:16]} 57. c4+ {[%clk 0:00:03]}  Ke6 {[%clk 0:00:17]} 58. Kg3 {[%clk 0:00:03]}  Kd7 {[%clk 0:00:17]} 59. Bd2 {[%clk 0:00:03]}  Kc6 {[%clk 0:00:18]} 60. Kf3 {[%clk 0:00:04]}  Kb6 {[%clk 0:00:18]} 61. Be1 {[%clk 0:00:04]}  Ka6 {[%clk 0:00:19]} 62. Bd2 {[%clk 0:00:04]}  Bd8 {[%clk 0:00:19]} 63. Kg3 {[%clk 0:00:05]}  Be7 {[%clk 0:00:19]} 64. Be1 {[%clk 0:00:05]}  Kb7 {[%clk 0:00:20]} 65. Bd2 {[%clk 0:00:05]}  Kc8 {[%clk 0:00:20]} 66. Be1 {[%clk 0:00:06]}  Kd7 {[%clk 0:00:21]} 67. Bd2 {[%clk 0:00:06]}  Ke6 {[%clk 0:00:22]} 68. Be1 {[%clk 0:00:06]}  Kf7 {[%clk 0:00:23]} 69. Bd2 {[%clk 0:00:07]}  Kg6 {[%clk 0:00:23]} 70. Ba5 {[%clk 0:00:07]}  a6 {[%clk 0:00:23]} 71. Bb6 {[%clk 0:00:07]}  h4+ {[%clk 0:00:23]} 72. Kh3 {[%clk 0:00:06]}  Kh5 {[%clk 0:00:23]} 73. Bc7 {[%clk 0:00:05]}  Bf8 {[%clk 0:00:24]} 74. Bd8 {[%clk 0:00:04]}  Bd6 {[%clk 0:00:24]} 75. Bxh4 {[%clk 0:00:03]}  Bxf4 {[%clk 0:00:25]} 76. Be7 {[%clk 0:00:04]}  Be5 {[%clk 0:00:23]} 77. Bxc5 {[%clk 0:00:04]}  f4 {[%clk 0:00:23]} 78. Kg2 {[%clk 0:00:03]}  Kg4 {[%clk 0:00:22]} 79. h3+ {[%clk 0:00:03]}  Kf5 {[%clk 0:00:22]} 80. Kf3 {[%clk 0:00:04]}  Bf6 {[%clk 0:00:21]} 81. Bd6 {[%clk 0:00:04]}  Bg5 {[%clk 0:00:20]} 82. c5 {[%clk 0:00:03]}  Ke6 {[%clk 0:00:21]} 83. Bxf4 {[%clk 0:00:03]}  Be7 {[%clk 0:00:21]} 84. c6 {[%clk 0:00:03]}  Bf6 {[%clk 0:00:19]} 85. c7 {[%clk 0:00:03]}  Kd7 {[%clk 0:00:20]} 86. Ke4 {[%clk 0:00:03]}  Bg7 {[%clk 0:00:20]} 87. Be5 {[%clk 0:00:03]}  Bh6 {[%clk 0:00:21]} 88. Kxd4 {[%clk 0:00:03]}  Bg5 {[%clk 0:00:21]} 89. Kd5 {[%clk 0:00:04]}  Bh4 {[%clk 0:00:22]} 90. d4 {[%clk 0:00:04]}  Be7 {[%clk 0:00:22]} 91. Ke4 {[%clk 0:00:03]}  Bh4 {[%clk 0:00:23]} 92. Kf5 {[%clk 0:00:04]}  Be7 {[%clk 0:00:24]} 93. Kg4 {[%clk 0:00:04]}  Bb4 {[%clk 0:00:23]} 94. h4 {[%clk 0:00:04]}  Bd2 {[%clk 0:00:24]} 95. h5 {[%clk 0:00:05]}  Bh6 {[%clk 0:00:24]} 96. Kf5 {[%clk 0:00:05]}  Bc1 {[%clk 0:00:25]} 97. Kg6 {[%clk 0:00:06]}  Be3 {[%clk 0:00:25]} 98. h6 {[%clk 0:00:06]}  Bxh6 {[%clk 0:00:25]} 99. Kxh6 {[%clk 0:00:07]}  Kc8 {[%clk 0:00:26]} 100. Kg6 {[%clk 0:00:07]}  Kd7 {[%clk 0:00:27]} 101. Kf5 {[%clk 0:00:08]}  a5 {[%clk 0:00:28]} 102. Ke4 {[%clk 0:00:09]}  Kc8 {[%clk 0:00:29]} 103. Kd3 {[%clk 0:00:09]}  Kd7 {[%clk 0:00:30]} 104. Kc4 {[%clk 0:00:10]}  Kc8 {[%clk 0:00:31]} 105. Kb5 {[%clk 0:00:11]}  Kd7 {[%clk 0:00:32]} 106. Kxa5 {[%clk 0:00:11]}  Kc8 {[%clk 0:00:33]} 107. Kb5 {[%clk 0:00:12]}  Kd7 {[%clk 0:00:33]} 108. a5 {[%clk 0:00:12]}  Kc8 {[%clk 0:00:34]} 109. a6 {[%clk 0:00:13]}  Kd7 {[%clk 0:00:35]} 110. a7 {[%clk 0:00:12]}  Ke6 {[%clk 0:00:35]} 111. a8=Q {[%clk 0:00:11]} 1-0


[Site "https://www.chess.com"]

[Event "Titled Tuesday Blitz November 14 Late 2023"]
[White "Hambleton, Aman"]
[Black "Kovacsy, Barnabas"]
[WhiteFideId "2606577"]
[BlackFideId "769290"]
[WhiteElo "2716"]
[BlackElo "2522"]
[Result "1-0"]
[Round "2"]
[TimeControl "180+1"]
[Date "2023.11.14"]
[WhiteClock "0:00:10"]
[BlackClock "0:00:08"]
[Board "54"]

1. d4 {[%clk 0:03:00]}  Nf6 {[%clk 0:02:59]} 2. Bf4 {[%clk 0:02:55]}  g6 {[%clk 0:02:57]} 3. e3 {[%clk 0:02:54]}  Bg7 {[%clk 0:02:57]} 4. h3 {[%clk 0:02:54]}  d6 {[%clk 0:02:57]} 5. Nf3 {[%clk 0:02:53]}  O-O {[%clk 0:02:56]} 6. Be2 {[%clk 0:02:53]}  c5 {[%clk 0:02:53]} 7. c3 {[%clk 0:02:53]}  cxd4 {[%clk 0:02:53]} 8. exd4 {[%clk 0:02:53]}  Qb6 {[%clk 0:02:24]} 9. Qb3 {[%clk 0:02:53]}  Qxb3 {[%clk 0:01:46]} 10. axb3 {[%clk 0:02:54]}  Re8 {[%clk 0:01:44]} 11. O-O {[%clk 0:02:54]}  Nc6 {[%clk 0:01:44]} 12. Bb5 {[%clk 0:01:51]}  Bd7 {[%clk 0:01:44]} 13. Re1 {[%clk 0:01:49]}  a6 {[%clk 0:01:42]} 14. Bf1 {[%clk 0:01:49]}  e5 {[%clk 0:01:16]} 15. dxe5 {[%clk 0:01:44]}  Nd5 {[%clk 0:01:04]} 16. Bg3 {[%clk 0:01:43]}  dxe5 {[%clk 0:01:03]} 17. Nbd2 {[%clk 0:01:42]}  f5 {[%clk 0:00:49]} 18. Bc4 {[%clk 0:01:39]}  Be6 {[%clk 0:00:44]} 19. Nxe5 {[%clk 0:00:57]}  Nxe5 {[%clk 0:00:43]} 20. Bxe5 {[%clk 0:00:57]}  b5 {[%clk 0:00:35]} 21. Bxd5 {[%clk 0:00:21]}  Bxd5 {[%clk 0:00:35]} 22. Bxg7 {[%clk 0:00:22]}  Kxg7 {[%clk 0:00:35]} 23. b4 {[%clk 0:00:15]}  Rad8 {[%clk 0:00:34]} 24. Nf1 {[%clk 0:00:03]}  Bc4 {[%clk 0:00:29]} 25. Rxe8 {[%clk 0:00:03]}  Rxe8 {[%clk 0:00:28]} 26. Ne3 {[%clk 0:00:04]}  Re6 {[%clk 0:00:24]} 27. g3 {[%clk 0:00:04]}  Kf6 {[%clk 0:00:23]} 28. Rd1 {[%clk 0:00:03]}  Bb3 {[%clk 0:00:22]} 29. Rd4 {[%clk 0:00:02]}  g5 {[%clk 0:00:21]} 30. h4 {[%clk 0:00:02]}  h6 {[%clk 0:00:20]} 31. hxg5+ {[%clk 0:00:02]}  hxg5 {[%clk 0:00:21]} 32. Kf1 {[%clk 0:00:02]}  Ke5 {[%clk 0:00:20]} 33. f4+ {[%clk 0:00:02]}  Kf6 {[%clk 0:00:20]} 34. Kf2 {[%clk 0:00:02]}  gxf4 {[%clk 0:00:20]} 35. gxf4 {[%clk 0:00:03]}  Rc6 {[%clk 0:00:15]} 36. Rd8 {[%clk 0:00:02]}  Be6 {[%clk 0:00:15]} 37. Rb8 {[%clk 0:00:01]}  Rd6 {[%clk 0:00:14]} 38. Ke2 {[%clk 0:00:02]}  Bf7 {[%clk 0:00:12]} 39. Ra8 {[%clk 0:00:02]}  Be6 {[%clk 0:00:12]} 40. Rb8 {[%clk 0:00:01]}  Bf7 {[%clk 0:00:13]} 41. Rf8 {[%clk 0:00:02]}  Re6 {[%clk 0:00:11]} 42. Rh8 {[%clk 0:00:02]}  Rd6 {[%clk 0:00:11]} 43. Rh4 {[%clk 0:00:02]}  Be6 {[%clk 0:00:11]} 44. Rh6+ {[%clk 0:00:02]}  Kf7 {[%clk 0:00:10]} 45. Ke1 {[%clk 0:00:02]}  Rd3 {[%clk 0:00:07]} 46. Rh3 {[%clk 0:00:02]}  Rd6 {[%clk 0:00:03]} 47. Rg3 {[%clk 0:00:03]}  Kf6 {[%clk 0:00:03]} 48. Ke2 {[%clk 0:00:03]}  Rb6 {[%clk 0:00:03]} 49. Rg1 {[%clk 0:00:03]}  Rd6 {[%clk 0:00:03]} 50. Rd1 {[%clk 0:00:02]}  Rxd1 {[%clk 0:00:04]} 51. Kxd1 {[%clk 0:00:03]}  Bc4 {[%clk 0:00:03]} 52. Nxc4 {[%clk 0:00:02]}  bxc4 {[%clk 0:00:04]} 53. Kc2 {[%clk 0:00:03]}  Ke6 {[%clk 0:00:05]} 54. b3 {[%clk 0:00:03]}  Kd5 {[%clk 0:00:05]} 55. bxc4+ {[%clk 0:00:04]}  Kxc4 {[%clk 0:00:06]} 56. Kd2 {[%clk 0:00:04]}  Kb5 {[%clk 0:00:06]} 57. Kd3 {[%clk 0:00:05]}  a5 {[%clk 0:00:07]} 58. bxa5 {[%clk 0:00:05]}  Kxa5 {[%clk 0:00:07]} 59. Kd4 {[%clk 0:00:06]}  Kb5 {[%clk 0:00:07]} 60. Ke5 {[%clk 0:00:07]}  Kc4 {[%clk 0:00:08]} 61. Kxf5 {[%clk 0:00:08]}  Kxc3 {[%clk 0:00:09]} 62. Ke6 {[%clk 0:00:09]}  Kd4 {[%clk 0:00:08]} 63. f5 {[%clk 0:00:10]} 1-0


[Site "https://www.chess.com"]

[Event "Titled Tuesday Blitz November 14 Late 2023"]
[White "Erdogan, Anil Berk"]
[Black "Tristan, Leonardo"]
[WhiteFideId "6348173"]
[BlackFideId "113816"]
[WhiteElo "2521"]
[BlackElo "2715"]
[Result "0-1"]
[Round "2"]
[TimeControl "180+1"]
[Date "2023.11.14"]
[WhiteClock "0:00:19"]
[BlackClock "0:00:13"]
[Board "55"]

1. e4 {[%clk 0:03:00]}  d5 {[%clk 0:03:00]} 2. exd5 {[%clk 0:03:00]}  Qxd5 {[%clk 0:03:00]} 3. Nc3 {[%clk 0:03:01]}  Qa5 {[%clk 0:03:01]} 4. d3 {[%clk 0:03:01]}  c6 {[%clk 0:02:56]} 5. Nf3 {[%clk 0:02:59]}  Nf6 {[%clk 0:02:56]} 6. Be2 {[%clk 0:02:59]}  Bg4 {[%clk 0:02:54]} 7. O-O {[%clk 0:02:58]}  e6 {[%clk 0:02:55]} 8. Bf4 {[%clk 0:02:57]}  Nbd7 {[%clk 0:02:51]} 9. Ne4 {[%clk 0:02:47]}  Nxe4 {[%clk 0:02:43]} 10. dxe4 {[%clk 0:02:48]}  Rd8 {[%clk 0:02:43]} 11. c3 {[%clk 0:02:38]}  Be7 {[%clk 0:02:08]} 12. h3 {[%clk 0:02:12]}  Bh5 {[%clk 0:02:05]} 13. Nd2 {[%clk 0:02:11]}  Nf6 {[%clk 0:01:54]} 14. Bxh5 {[%clk 0:01:56]}  Qxh5 {[%clk 0:01:35]} 15. Qxh5 {[%clk 0:01:43]}  Nxh5 {[%clk 0:01:35]} 16. Be3 {[%clk 0:01:44]}  b6 {[%clk 0:00:46]} 17. a4 {[%clk 0:01:38]}  Bc5 {[%clk 0:00:45]} 18. Bxc5 {[%clk 0:01:25]}  Rxd2 {[%clk 0:00:45]} 19. Ba3 {[%clk 0:01:25]}  c5 {[%clk 0:00:27]} 20. Rfd1 {[%clk 0:01:23]}  Re2 {[%clk 0:00:21]} 21. Re1 {[%clk 0:01:13]}  Rxe1+ {[%clk 0:00:20]} 22. Rxe1 {[%clk 0:01:13]}  Kd7 {[%clk 0:00:21]} 23. b4 {[%clk 0:01:12]}  cxb4 {[%clk 0:00:20]} 24. cxb4 {[%clk 0:01:09]}  Rc8 {[%clk 0:00:19]} 25. Rd1+ {[%clk 0:01:08]}  Ke8 {[%clk 0:00:19]} 26. Rc1 {[%clk 0:00:57]}  Rxc1+ {[%clk 0:00:16]} 27. Bxc1 {[%clk 0:00:58]}  Nf6 {[%clk 0:00:16]} 28. f3 {[%clk 0:00:58]}  Kd7 {[%clk 0:00:15]} 29. Bb2 {[%clk 0:00:57]}  Ne8 {[%clk 0:00:15]} 30. Kf2 {[%clk 0:00:57]}  f6 {[%clk 0:00:15]} 31. Ke3 {[%clk 0:00:58]}  a6 {[%clk 0:00:12]} 32. Kd3 {[%clk 0:00:58]}  Kc6 {[%clk 0:00:13]} 33. f4 {[%clk 0:00:57]}  Nd6 {[%clk 0:00:11]} 34. g4 {[%clk 0:00:56]}  Kd7 {[%clk 0:00:08]} 35. h4 {[%clk 0:00:57]}  Ne8 {[%clk 0:00:08]} 36. h5 {[%clk 0:00:57]}  g6 {[%clk 0:00:07]} 37. hxg6 {[%clk 0:00:45]}  hxg6 {[%clk 0:00:07]} 38. Kc4 {[%clk 0:00:45]}  Kc6 {[%clk 0:00:08]} 39. e5 {[%clk 0:00:45]}  f5 {[%clk 0:00:07]} 40. gxf5 {[%clk 0:00:42]}  gxf5 {[%clk 0:00:06]} 41. b5+ {[%clk 0:00:42]}  axb5+ {[%clk 0:00:06]} 42. axb5+ {[%clk 0:00:43]}  Kd7 {[%clk 0:00:06]} 43. Bd4 {[%clk 0:00:42]}  Kc7 {[%clk 0:00:07]} 44. Be3 {[%clk 0:00:35]}  Kb7 {[%clk 0:00:07]} 45. Bd2 {[%clk 0:00:32]}  Nc7 {[%clk 0:00:08]} 46. Be3 {[%clk 0:00:31]}  Nd5 {[%clk 0:00:08]} 47. Bd2 {[%clk 0:00:32]}  Kc7 {[%clk 0:00:09]} 48. Kd4 {[%clk 0:00:32]}  Kd7 {[%clk 0:00:08]} 49. Kd3 {[%clk 0:00:22]}  Ke7 {[%clk 0:00:09]} 50. Ke2 {[%clk 0:00:20]}  Kf7 {[%clk 0:00:09]} 51. Kf3 {[%clk 0:00:20]}  Kg6 {[%clk 0:00:09]} 52. Be1 {[%clk 0:00:20]}  Kh5 {[%clk 0:00:07]} 53. Bf2 {[%clk 0:00:20]}  Kh6 {[%clk 0:00:06]} 54. Be1 {[%clk 0:00:20]}  Kh7 {[%clk 0:00:07]} 55. Bf2 {[%clk 0:00:21]}  Kg7 {[%clk 0:00:07]} 56. Be1 {[%clk 0:00:20]}  Kg6 {[%clk 0:00:07]} 57. Bd2 {[%clk 0:00:20]}  Kh5 {[%clk 0:00:05]} 58. Be1 {[%clk 0:00:19]}  Nc7 {[%clk 0:00:06]} 59. Bf2 {[%clk 0:00:19]}  Nxb5 {[%clk 0:00:06]} 60. Bxb6 {[%clk 0:00:19]}  Kh4 {[%clk 0:00:07]} 61. Bf2+ {[%clk 0:00:17]}  Kh3 {[%clk 0:00:07]} 62. Be3 {[%clk 0:00:17]}  Nc7 {[%clk 0:00:05]} 63. Bc5 {[%clk 0:00:17]}  Nd5 {[%clk 0:00:05]} 64. Bf8 {[%clk 0:00:17]}  Nc3 {[%clk 0:00:03]} 65. Bh6 {[%clk 0:00:17]}  Ne4 {[%clk 0:00:03]} 66. Bf8 {[%clk 0:00:14]}  Nc3 {[%clk 0:00:02]} 67. Bb4 {[%clk 0:00:14]}  Nd5 {[%clk 0:00:02]} 68. Ba3 {[%clk 0:00:14]}  Kh2 {[%clk 0:00:03]} 69. Bc5 {[%clk 0:00:13]}  Nc3 {[%clk 0:00:02]} 70. Ke3 {[%clk 0:00:12]}  Kg3 {[%clk 0:00:02]} 71. Kd3 {[%clk 0:00:09]}  Nd5 {[%clk 0:00:02]} 72. Bd6 {[%clk 0:00:07]}  Kxf4 {[%clk 0:00:03]} 73. Kd4 {[%clk 0:00:08]}  Kf3 {[%clk 0:00:03]} 74. Kc5 {[%clk 0:00:08]}  Ke4 {[%clk 0:00:03]} 75. Kc6 {[%clk 0:00:09]}  Nf4 {[%clk 0:00:04]} 76. Kd7 {[%clk 0:00:08]}  Kd5 {[%clk 0:00:04]} 77. Ke7 {[%clk 0:00:09]}  Nd3 {[%clk 0:00:05]} 78. Kf6 {[%clk 0:00:09]}  f4 {[%clk 0:00:05]} 79. Bb8 {[%clk 0:00:09]}  f3 {[%clk 0:00:06]} 80. Ba7 {[%clk 0:00:09]}  f2 {[%clk 0:00:06]} 81. Bxf2 {[%clk 0:00:08]}  Nxf2 {[%clk 0:00:07]} 82. Kg5 {[%clk 0:00:09]}  Nd3 {[%clk 0:00:07]} 83. Kg4 {[%clk 0:00:10]}  Nxe5+ {[%clk 0:00:08]} 84. Kf4 {[%clk 0:00:10]}  Nc4 {[%clk 0:00:08]} 85. Kg3 {[%clk 0:00:11]}  e5 {[%clk 0:00:09]} 86. Kf2 {[%clk 0:00:12]}  e4 {[%clk 0:00:09]} 87. Ke1 {[%clk 0:00:13]}  e3 {[%clk 0:00:10]} 88. Kd1 {[%clk 0:00:14]}  Ke4 {[%clk 0:00:10]} 89. Ke2 {[%clk 0:00:14]}  Nd6 {[%clk 0:00:11]} 90. Ke1 {[%clk 0:00:15]}  Kd3 {[%clk 0:00:11]} 91. Kd1 {[%clk 0:00:16]}  e2+ {[%clk 0:00:12]} 92. Ke1 {[%clk 0:00:17]}  Nb7 {[%clk 0:00:12]} 93. Kf2 {[%clk 0:00:18]}  Kd2 {[%clk 0:00:13]} 94. Kg2 {[%clk 0:00:19]}  e1=Q {[%clk 0:00:13]} 95. Kh2 {[%clk 0:00:19]}  Qe3 {[%clk 0:00:12]} 96. Kg2 {[%clk 0:00:19]}  Qf4 {[%clk 0:00:12]} 97. Kh1 {[%clk 0:00:19]}  Qg4 {[%clk 0:00:12]} 98. Kh2 {[%clk 0:00:19]}  Ke2 {[%clk 0:00:13]} 0-1


[Site "https://www.chess.com"]